bitfinex-derivatives/quotes_SOLF0:USTF0_20250211
["timestamp","ask_amount","ask_price","bid_price","bid_amount"]
[1739304542537,0.0353344,196.95,196.84,13.9665332]
[1739304542737,1.5614,196.94,196.84,13.9665332]
[1739304542938,5.079,196.9,196.85,5.0802]
[1739304543735,5.11674112,196.89,196.86,0.03415404]
[1739304544546,0.03744112,196.89,196.86,0.03415404]
[1739304545040,0.03744112,196.89,196.88,5.0795]
[1739304545235,13.9665332,197.02,196.87,13.9665332]
[1739304545438,15.5482332,197.05,196.91,13.9665332]
[1739304545739,15.5482332,197.05,196.88,1.519]
[1739304545740,15.5482332,197.05,196.94,13.9665332]
[1739304546442,0.03475616,197.01,196.98,0.0370749]
[1739304547841,0.03475616,197.01,196.99,5.0764]
[1739304548539,0.03475616,197.01,196.98,5.1138749]
[1739304549242,0.03475616,197.01,196.98,0.0370749]
[1739304549840,0.03475616,197.01,196.98,5.1137749]
[1739304550041,0.03475616,197.01,196.98,0.0370749]
[1739304550840,0.03475616,197.01,196.99,5.0765]
[1739304551038,0.03475616,197.01,196.98,0.0370749]
[1739304551444,0.03475616,197.01,196.99,5.0766]
[1739304551843,0.03475616,197.01,196.98,0.0370749]
[1739304552039,0.03475616,197.01,196.98,5.1138749]
[1739304552339,0.03475616,197.01,196.98,0.0370749]
[1739304553949,0.03475616,197.01,196.99,5.0766]
[1739304554246,0.03475616,197.01,196.98,0.0370749]
[1739304554447,5.0766,196.99,196.98,0.0370749]
[1739304555853,5.0766,196.99,196.93,5.0779]
[1739304555854,5.0772,196.97,196.93,5.0779]
[1739304556046,15.4814332,196.99,196.88,3.1057]
[1739304556445,15.4814332,196.99,196.87,13.9665332]
[1739304556653,13.9665332,196.96,196.88,5.0792]
[1739304556853,13.9665332,196.96,196.84,13.9665332]
[1739304557151,0.03681604,196.94,196.9,5.11108247]
[1739304557541,0.03681604,196.94,196.9,0.03238247]
[1739304557743,5.0787,196.91,196.9,0.03238247]
[1739304558155,15.4212332,196.93,196.9,0.03238247]
[1739304558349,5.0786,196.92,196.9,0.03238247]
[1739304558651,15.4212332,196.93,196.9,0.03238247]
[1739304558853,5.0787,196.91,196.9,0.03238247]
[1739304559651,5.0794,196.89,196.84,5.0803]
[1739304560049,13.9665332,196.9,196.78,13.9665332]
[1739304560247,5.0797,196.88,196.78,13.9665332]
[1739304560442,13.9665332,196.9,196.78,13.9665332]
[1739304560849,0.03573992,196.86,196.82,0.03374512]
[1739304561851,0.03573992,196.86,196.85,5.0802]
[1739304562351,15.4814332,196.99,196.91,5.0784]
[1739304562550,5.0775,196.96,196.87,13.9665332]
[1739304563253,5.0769,196.98,196.87,13.9665332]
[1739304563442,15.4814332,196.99,196.87,13.9665332]
[1739304563643,0.03306209,196.94,196.91,0.03879636]
[1739304563850,0.03306209,196.94,196.91,5.11739636]
[1739304564543,0.03306209,196.94,196.91,0.03879636]
[1739304564950,5.0784,196.92,196.91,0.03879636]
[1739304565252,0.03306209,196.94,196.91,0.03879636]
[1739304566056,5.0782,196.93,196.91,0.03879636]
[1739304566454,0.03306209,196.94,196.91,0.03879636]
[1739304566852,5.0784,196.92,196.91,0.03879636]
[1739304567255,0.03306209,196.94,196.91,0.03879636]
[1739304567958,5.0784,196.93,196.91,0.03879636]
[1739304568255,0.03306209,196.94,196.91,0.03879636]
[1739304568658,5.0784,196.93,196.91,0.03879636]
[1739304570760,5.0784,196.92,196.91,0.03879636]
[1739304571357,0.03306209,196.94,196.91,0.03879636]
[1739304572360,0.03306209,196.94,196.91,5.11739636]
[1739304572555,0.03306209,196.94,196.91,0.03879636]
[1739304572959,0.03306209,196.94,196.92,5.0784]
[1739304573664,0.03306209,196.94,196.91,0.03879636]
[1739304574260,0.03306209,196.94,196.91,5.11729636]
[1739304575264,0.03306209,196.94,196.92,5.0782]
[1739304576257,0.03306209,196.94,196.91,0.03879636]
[1739304576463,0.03306209,196.94,196.91,5.11739636]
[1739304577663,0.03306209,196.94,196.91,0.03879636]
[1739304579166,5.0784,196.92,196.91,0.03879636]
[1739304585068,13.9665332,196.93,196.83,5.0807]
[1739304585273,13.9665332,196.93,196.81,4.4515]
[1739304586270,0.03639714,196.89,196.87,5.0795]
[1739304587569,0.03639714,196.89,196.86,5.0799]
[1739304588475,0.03639714,196.89,196.87,5.0795]
[1739304588773,0.03639714,196.89,196.85,0.03239822]
[1739304589265,0.03639714,196.89,196.88,5.0795]
[1739304591475,0.03639714,196.89,196.85,0.03239822]
[1739304591672,0.03639714,196.89,196.87,5.0797]
[1739304591873,5.11559714,196.89,196.85,0.03239822]
[1739304592073,5.11559714,196.89,196.85,5.11259822]
[1739304592685,5.0796,196.88,196.85,0.03239822]
[1739304592989,0.03639714,196.89,196.85,0.03239822]
[1739304594187,0.03639714,196.89,196.85,5.11259822]
[1739304594583,0.03639714,196.89,196.86,5.0799]
[1739304594986,0.03639714,196.89,196.85,0.03239822]
[1739304595891,0.03639714,196.89,196.88,5.0795]
[1739304597989,0.03639714,196.89,196.87,5.0797]
[1739304598190,0.03639714,196.89,196.85,0.03239822]
[1739304598583,0.03639714,196.89,196.87,5.0795]
[1739304598792,0.03639714,196.89,196.85,0.03239822]
[1739304599992,0.03639714,196.89,196.87,5.0796]
[1739304600395,0.03639714,196.89,196.85,0.03239822]
[1739304600692,0.03639714,196.89,196.86,5.08]
[1739304601091,0.03639714,196.89,196.85,0.03239822]
[1739304601293,0.03639714,196.89,196.88,5.0795]
[1739304602597,0.03639714,196.89,196.85,0.03239822]
[1739304604494,5.11569714,196.89,196.85,0.03239822]
[1739304604695,0.03639714,196.89,196.85,0.03239822]
[1739304605392,0.03639714,196.89,196.87,5.0796]
[1739304605697,0.03639714,196.89,196.85,0.03239822]
[1739304606996,0.03639714,196.89,196.85,5.11259822]
[1739304607296,0.03639714,196.89,196.85,0.03239822]
[1739304607997,5.0795,196.88,196.85,0.03239822]
[1739304608497,0.03639714,196.89,196.85,0.03239822]
[1739304610297,5.0795,196.88,196.85,0.03239822]
[1739304610495,0.03639714,196.89,196.85,0.03239822]
[1739304610897,5.08,196.86,196.85,0.03239822]
[1739304611595,5.0797,196.88,196.85,0.03239822]
[1739304611895,0.03639714,196.89,196.85,0.03239822]
[1739304612296,5.11579714,196.89,196.85,0.03239822]
[1739304613295,0.03639714,196.89,196.85,0.03239822]
[1739304614396,5.0797,196.88,196.85,0.03239822]
[1739304614597,0.03639714,196.89,196.85,0.03239822]
[1739304615193,5.08,196.86,196.85,0.03239822]
[1739304617298,13.9665332,196.87,196.74,13.9665332]
[1739304617695,13.9665332,196.87,196.77,5.0821]
[1739304617996,13.9665332,196.87,196.74,13.9665332]
[1739304618304,4.6982,196.89,196.77,13.9665332]
[1739304618507,0.03868532,196.82,196.79,0.03344757]
[1739304618705,4.6982,196.89,196.81,5.0813]
[1739304618900,0.03742775,196.82,196.81,5.0813]
[1739304619100,5.0803,196.85,196.83,0.03450553]
[1739304619302,4.6982,196.89,196.83,0.03450553]
[1739304619503,0.03879843,196.86,196.83,0.03450553]
[1739304619703,5.0805,196.84,196.83,0.03450553]
[1739304620201,5.0816,196.8,196.74,13.9665332]
[1739304620408,5.0816,196.8,196.71,18.6962332]
[1739304620900,5.0821,196.78,196.71,18.6962332]
[1739304621104,13.9665332,196.82,196.71,3.17]
[1739304621300,13.9665332,196.82,196.72,5.0833]
[1739304621501,5.0824,196.77,196.75,0.03631543]
[1739304621805,0.0370203,196.78,196.75,0.03631543]
[1739304622004,5.0823,196.77,196.75,0.03631543]
[1739304622200,0.0370203,196.78,196.75,0.03631543]
[1739304623505,5.0826,196.76,196.75,0.03631543]
[1739304624705,5.0824,196.77,196.75,0.03631543]
[1739304625110,5.1191203,196.78,196.75,0.03631543]
[1739304625806,0.0370203,196.78,196.75,0.03631543]
[1739304626904,0.0370203,196.78,196.77,5.0823]
[1739304627110,0.0370203,196.78,196.77,19.0488332]
[1739304627313,1.4544,196.87,196.82,5.0808]
[1739304627314,6.5342,196.87,196.82,5.0808]
[1739304627513,1.4544,196.87,196.77,13.9665332]
[1739304628208,13.9665332,196.88,196.77,13.9665332]
[1739304628608,0.03215963,196.84,196.81,0.03683898]
[1739304629513,0.03215963,196.84,196.83,5.0807]
[1739304629910,0.03215963,196.84,196.81,0.03683898]
[1739304630613,0.03215963,196.84,196.82,5.081]
[1739304630807,0.03215963,196.84,196.81,0.03683898]
[1739304631214,0.03215963,196.84,196.82,5.0809]
[1739304631917,0.03215963,196.84,196.81,0.03683898]
[1739304632512,0.03215963,196.84,196.81,5.11793898]
[1739304632917,0.03215963,196.84,196.81,0.03683898]
[1739304635418,0.03215963,196.84,196.82,5.081]
[1739304635616,0.03215963,196.84,196.81,0.03683898]
[1739304635817,0.03215963,196.84,196.83,5.0807]
[1739304637315,0.03215963,196.84,196.81,0.03683898]
[1739304638608,0.03215963,196.84,196.82,5.0808]
[1739304639611,0.03215963,196.84,196.81,0.03683898]
[1739304640413,0.03215963,196.84,196.82,5.081]
[1739304641713,0.03215963,196.84,196.81,0.03683898]
[1739304641913,0.03215963,196.84,196.83,5.0807]
[1739304642520,0.03215963,196.84,196.81,0.03683898]
[1739304642721,0.03215963,196.84,196.82,5.081]
[1739304642915,0.03215963,196.84,196.81,0.03683898]
[1739304643318,0.03215963,196.84,196.81,5.11803898]
[1739304644221,0.03215963,196.84,196.81,0.03683898]
[1739304646922,5.081,196.82,196.81,0.03683898]
[1739304650122,5.0821,196.78,196.74,5.083]
[1739304650814,5.0821,196.78,196.73,5.0832]
[1739304651413,0.03210847,196.77,196.74,0.03596533]
[1739304651622,0.03210847,196.77,196.74,5.11876533]
[1739304651818,0.03210847,196.77,196.74,0.03596533]
[1739304652325,0.03210847,196.77,196.75,5.0826]
[1739304653524,0.03210847,196.77,196.74,0.03596533]
[1739304654224,0.03210847,196.77,196.74,5.11896533]
[1739304654621,0.03210847,196.77,196.74,0.03596533]
[1739304655123,5.11460847,196.77,196.74,0.03596533]
[1739304655515,0.03210847,196.77,196.74,0.03596533]
[1739304655720,5.0826,196.76,196.74,0.03596533]
[1739304656219,5.0828,196.75,196.74,0.03596533]
[1739304663322,13.9665332,196.76,196.65,17.1537332]
[1739304663524,5.0835,196.73,196.68,5.0846]
[1739304663828,13.9665332,196.76,196.65,17.1537332]
[1739304664028,5.083,196.75,196.65,17.1537332]
[1739304664425,0.03823242,196.72,196.68,0.03404403]
[1739304664730,0.03823242,196.72,196.69,5.0843]
[1739304665931,0.03823242,196.72,196.68,0.03404403]
[1739304666131,0.03823242,196.72,196.68,5.11854403]
[1739304666328,5.12203242,196.72,196.68,0.03404403]
[1739304666528,0.03823242,196.72,196.68,0.03404403]
[1739304667026,5.0843,196.7,196.68,0.03404403]
[1739304668032,5.12193242,196.72,196.68,0.03404403]
[1739304668239,0.03823242,196.72,196.68,0.03404403]
[1739304669233,5.0842,196.7,196.68,0.03404403]
[1739304669433,0.03823242,196.72,196.68,0.03404403]
[1739304669733,8.93689438,196.69,196.68,0.03404403]
[1739304670126,14.02129438,196.69,196.68,0.03404403]
[1739304670328,8.93689438,196.69,196.68,0.03404403]
[1739304671936,8.93689438,196.69,196.59,1.572]
[1739304671937,8.93689438,196.69,196.61,8.93689438]
[1739304672130,8.93689438,196.67,196.61,8.93689438]
[1739304672527,8.93689438,196.67,196.64,5.0856]
[1739304672737,8.93689438,196.67,196.61,8.93689438]
[1739304673139,0.03701806,196.66,196.63,5.0859]
[1739304674041,0.03701806,196.66,196.63,8.93689438]
[1739304674436,0.03701806,196.66,196.65,8.93689438]
[1739304674641,0.03701806,196.66,196.65,14.02229438]
[1739304675038,8.93689438,196.75,196.65,8.93689438]
[1739304675236,8.93689438,196.75,196.7,8.93689438]
[1739304675736,8.93689438,196.75,196.68,8.93689438]
[1739304675939,8.93689438,196.75,196.7,8.93689438]
[1739304676140,0.03298118,196.73,196.7,8.96978272]
[1739304676339,0.03298118,196.73,196.72,8.93689438]
[1739304676640,0.03298118,196.73,196.71,5.0838]
[1739304676835,0.03298118,196.73,196.7,8.96978272]
[1739304677644,0.03298118,196.73,196.7,0.03288834]
[1739304678143,0.03298118,196.73,196.71,5.0838]
[1739304678643,0.03298118,196.73,196.7,0.03288834]
[1739304679738,0.03298118,196.73,196.72,5.0836]
[1739304683843,0.03298118,196.73,196.71,5.0838]
[1739304684847,0.03298118,196.73,196.72,5.0836]
[1739304685050,0.03298118,196.73,196.7,0.03288834]
[1739304686045,0.03298118,196.73,196.72,5.0836]
[1739304686446,0.03298118,196.73,196.7,0.03288834]
[1739304686745,0.03298118,196.73,196.7,5.11688834]
[1739304687353,0.03298118,196.73,196.7,0.03288834]
[1739304688850,0.03298118,196.73,196.71,5.0838]
[1739304689752,0.03298118,196.73,196.72,5.0836]
[1739304690054,0.03298118,196.73,196.7,0.03288834]
[1739304690952,5.11658118,196.73,196.7,0.03288834]
[1739304691149,0.03298118,196.73,196.7,0.03288834]
[1739304691351,5.0836,196.72,196.7,0.03288834]
[1739304691755,0.03298118,196.73,196.7,0.03288834]
[1739304691955,5.0838,196.71,196.7,0.03288834]
[1739304693149,13.95279288,196.71,196.59,18.57869288]
[1739304693357,5.0851,196.67,196.62,5.0861]
[1739304693654,13.95279288,196.71,196.59,18.57869288]
[1739304694058,5.0852,196.66,196.61,5.0864]
[1739304694357,0.03851667,196.65,196.62,0.03708278]
[1739304694654,0.03851667,196.65,196.62,5.12318278]
[1739304695152,0.03851667,196.65,196.62,0.03708278]
[1739304695661,0.03851667,196.65,196.63,5.0859]
[1739304696858,0.03851667,196.65,196.62,0.03708278]
[1739304698861,0.03851667,196.65,196.62,5.12318278]
[1739304701864,0.03851667,196.65,196.62,0.03708278]
[1739304702965,0.03851667,196.65,196.62,5.12328278]
[1739304703161,0.03851667,196.65,196.62,0.03708278]
[1739304703566,8.97898107,196.65,196.62,0.03708278]
[1739304704670,8.97898107,196.65,196.62,5.12318278]
[1739304706070,14.06458107,196.65,196.62,0.03708278]
[1739304709575,5.0857,196.64,196.62,0.03708278]
[1739304710171,5.0859,196.63,196.62,0.03708278]
[1739304712071,8.97898107,196.65,196.62,0.03708278]
[1739304712272,5.0857,196.64,196.62,0.03708278]
[1739304712473,8.97898107,196.65,196.62,0.03708278]
[1739304712872,14.0263644,196.63,196.62,0.03708278]
[1739304713972,8.9404644,196.63,196.53,8.9404644]
[1739304714174,8.9404644,196.59,196.56,5.0875]
[1739304714969,8.9404644,196.59,196.53,8.9404644]
[1739304714970,8.9404644,196.57,196.52,1.556]
[1739304715175,8.9404644,196.57,196.56,0.0326948]
[1739304715379,8.9404644,196.57,196.55,5.0879]
[1739304715578,8.9404644,196.57,196.55,5.12046394]
[1739304715779,8.9404644,196.57,196.55,0.03256394]
[1739304716879,8.9404644,196.57,196.55,5.12046394]
[1739304717380,8.9404644,196.57,196.55,0.03256394]
[1739304720184,8.9404644,196.57,196.55,5.12046394]
[1739304721184,0.03607835,196.59,196.57,5.0873]
[1739304721384,0.03607835,196.59,196.55,8.97302834]
[1739304721575,8.97654275,196.59,196.55,0.03256394]
[1739304721982,8.9404644,196.57,196.55,0.03256394]
[1739304722384,14.0279644,196.57,196.55,0.03256394]
[1739304722585,8.9404644,196.57,196.55,0.03256394]
[1739304723483,8.9404644,196.57,196.55,5.12056394]
[1739304723684,8.9404644,196.57,196.55,0.03256394]
[1739304724589,8.9404644,196.57,196.55,5.12046394]
[1739304724782,8.9404644,196.57,196.55,0.03256394]
[1739304726387,5.0877,196.56,196.55,0.03256394]
[1739304726991,5.0883,196.54,196.48,5.0896]
[1739304727188,8.9404644,196.51,196.48,5.0896]
[1739304728086,8.9734372,196.51,196.48,5.12211529]
[1739304728391,8.9734372,196.51,196.48,0.03251529]
[1739304728594,0.0329728,196.51,196.5,5.0893]
[1739304729190,8.9404644,196.59,196.49,8.9404644]
[1739304729395,8.9404644,196.59,196.53,8.9404644]
[1739304729796,8.9404644,196.57,196.53,5.0885]
[1739304729997,8.9404644,196.57,196.49,8.9404644]
[1739304730192,8.9404644,196.57,196.51,8.9404644]
[1739304730391,0.03730114,196.55,196.51,8.97534263]
[1739304730591,0.03730114,196.55,196.53,8.9404644]
[1739304730994,0.03730114,196.55,196.54,5.0882]
[1739304731900,0.03730114,196.55,196.52,5.0887]
[1739304732092,0.03730114,196.55,196.51,8.97534263]
[1739304733191,0.03730114,196.55,196.52,5.0887]
[1739304733697,5.12530114,196.55,196.52,5.0887]
[1739304733894,8.9404644,196.53,196.51,0.03487823]
[1739304734699,5.0888,196.52,196.51,0.03487823]
[1739304735588,19.08227697,196.52,196.51,0.03487823]
[1739304736097,13.99347697,196.52,196.51,0.03487823]
[1739304737097,19.08227697,196.52,196.51,0.03487823]
[1739304737398,13.99347697,196.52,196.51,0.03487823]
[1739304738393,14.03077811,196.55,196.51,0.03487823]
[1739304738599,0.03730114,196.55,196.54,5.0882]
[1739304741701,0.03730114,196.55,196.52,1.5355]
[1739304742391,0.03730114,196.55,196.53,5.0885]
[1739304743106,0.03730114,196.55,196.54,5.0882]
[1739304744500,0.03730114,196.55,196.53,5.0885]
[1739304745501,0.03730114,196.55,196.51,0.03487823]
[1739304745902,5.0888,196.52,196.51,0.03487823]
[1739304746097,19.08227697,196.52,196.51,0.03487823]
[1739304749008,5.0895,196.5,196.39,18.59287697]
[1739304749508,5.0897,196.49,196.43,5.091]
[1739304749709,13.99347697,196.52,196.39,18.59287697]
[1739304750109,0.03781214,196.47,196.44,0.03375825]
[1739304750510,0.03781214,196.47,196.45,5.0903]
[1739304750708,0.03781214,196.47,196.44,0.03375825]
[1739304751712,13.99347697,196.58,196.5,5.089]
[1739304752311,13.99347697,196.58,196.48,5.0896]
[1739304752611,5.0887,196.53,196.48,5.0896]
[1739304752911,5.12087162,196.52,196.49,0.03621644]
[1739304753113,14.02554859,196.52,196.49,0.03621644]
[1739304753411,5.0893,196.5,196.49,0.03621644]
[1739304754013,5.0891,196.51,196.49,0.03621644]
[1739304754806,14.02554859,196.52,196.49,0.03621644]
[1739304755006,5.0893,196.5,196.49,0.03621644]
[1739304755710,14.04567706,196.5,196.49,0.03621644]
[1739304756114,8.95637706,196.5,196.49,0.03621644]
[1739304756708,14.07734868,196.52,196.49,0.03621644]
[1739304757221,8.98844868,196.52,196.49,0.03621644]
[1739304757413,14.07724868,196.52,196.49,0.03621644]
[1739304757805,8.95637706,196.5,196.49,0.03621644]
[1739304760116,8.98844868,196.52,196.49,0.03621644]
[1739304760316,0.03207162,196.52,196.49,0.03621644]
[1739304760517,8.98844868,196.52,196.49,5.12571644]
[1739304760716,8.98844868,196.52,196.49,0.03621644]
[1739304762916,14.07734868,196.52,196.49,0.03621644]
[1739304763620,5.089,196.51,196.49,0.03621644]
[1739304764421,14.04567706,196.5,196.49,0.03621644]
[1739304764622,8.95637706,196.5,196.49,0.03621644]
[1739304766322,8.98844868,196.52,196.49,0.03621644]
[1739304766525,14.07744868,196.52,196.49,0.03621644]
[1739304766823,8.98844868,196.52,196.49,0.03621644]
[1739304767518,5.0892,196.51,196.49,0.03621644]
[1739304767716,8.98844868,196.52,196.49,0.03621644]
[1739304769826,5.0892,196.51,196.49,0.03621644]
[1739304770427,14.04567706,196.5,196.49,0.03621644]
[1739304771317,8.95637706,196.5,196.49,0.03621644]
[1739304772630,14.04567706,196.5,196.49,0.03621644]
[1739304777138,8.95637706,196.5,196.49,0.03621644]
[1739304778540,5.089,196.51,196.49,0.03621644]
[1739304778937,14.04567706,196.5,196.49,0.03621644]
[1739304780633,8.95637706,196.5,196.49,0.03621644]
[1739304780837,8.98844868,196.52,196.49,0.03621644]
[1739304781231,8.98844868,196.52,196.49,5.12571644]
[1739304782137,8.95637706,196.5,196.49,0.03621644]
[1739304782842,14.04567706,196.5,196.49,0.03621644]
[1739304783343,8.95637706,196.5,196.49,0.03621644]
[1739304784350,0.03207162,196.52,196.51,5.089]
[1739304784844,0.03207162,196.52,196.49,8.9925935]
[1739304784845,0.03207162,196.52,196.49,0.03621644]
[1739304785044,8.95637706,196.51,196.49,0.03621644]
[1739304785241,0.03207162,196.52,196.49,0.03621644]
[1739304787045,5.0892,196.51,196.49,0.03621644]
[1739304787246,0.03207162,196.52,196.49,0.03621644]
[1739304787546,5.0891,196.51,196.49,0.03621644]
[1739304787746,8.95637706,196.51,196.49,0.03621644]
[1739304788541,5.0893,196.5,196.49,0.03621644]
[1739304790951,8.95637706,196.51,196.49,0.03621644]
[1739304791147,0.03207162,196.52,196.49,0.03621644]
[1739304791651,0.03207162,196.52,196.49,8.9925935]
[1739304792047,0.03207162,196.52,196.51,5.089]
[1739304792856,0.03207162,196.52,196.49,8.9925935]
[1739304793048,0.03207162,196.52,196.49,0.03621644]
[1739304793755,8.95637706,196.51,196.49,0.03621644]
[1739304794251,5.0893,196.5,196.49,0.03621644]
[1739304796856,14.04547706,196.51,196.49,0.03621644]
[1739304797457,8.95637706,196.51,196.49,0.03621644]
[1739304797762,0.03207162,196.52,196.49,0.03621644]
[1739304798653,8.95637706,196.51,196.49,0.03621644]
[1739304800054,5.0893,196.5,196.49,0.03621644]
[1739304806361,14.04547706,196.51,196.49,0.03621644]
[1739304806864,8.95637706,196.51,196.49,0.03621644]
[1739304807470,5.0893,196.5,196.49,0.03621644]
[1739304813873,8.95637706,196.51,196.49,0.03621644]
[1739304815678,5.0893,196.5,196.49,0.03621644]
[1739304827080,8.95637706,196.51,196.49,0.03621644]
[1739304827285,0.03207162,196.52,196.49,0.03621644]
[1739304830987,0.03207162,196.52,196.49,5.12551644]
[1739304831491,0.03207162,196.52,196.49,8.9925935]
[1739304831695,0.03207162,196.52,196.49,14.0820935]
[1739304832283,8.95637706,196.51,196.49,0.03621644]
[1739304833490,5.0893,196.5,196.49,0.03621644]
[1739304836297,8.95637706,196.45,196.39,13.55577706]
[1739304836490,8.95637706,196.45,196.41,5.0914]
[1739304836692,8.95637706,196.45,196.39,12.10017706]
[1739304836889,8.95637706,196.47,196.39,12.10017706]
[1739304837093,8.95637706,196.49,196.43,8.95637706]
[1739304837493,0.03477162,196.48,196.44,0.03458863]
[1739304838489,0.03477162,196.48,196.45,5.0905]
[1739304838800,20.1341831,196.55,196.47,8.95637706]
[1739304838998,8.95637706,196.55,196.49,8.95637706]
[1739304839195,14.04457706,196.55,196.5,5.0891]
[1739304839792,5.0883,196.54,196.5,5.0891]
[1739304839995,5.12589825,196.54,196.51,0.032022]
[1739304840195,0.03759825,196.54,196.51,0.032022]
[1739304841396,0.03759825,196.54,196.51,8.98839906]
[1739304841792,0.03759825,196.54,196.51,0.032022]
[1739304842194,5.12609825,196.54,196.51,0.032022]
[1739304842391,8.95637706,196.53,196.51,0.032022]
[1739304842890,5.0888,196.52,196.51,0.032022]
[1739304843595,8.95637706,196.53,196.51,0.032022]
[1739304843798,0.03759825,196.54,196.51,0.032022]
[1739304846397,0.03759825,196.54,196.51,5.120822]
[1739304847094,0.03759825,196.54,196.52,5.0886]
[1739304847300,0.03759825,196.54,196.51,0.032022]
[1739304847695,0.03759825,196.54,196.51,5.120822]
[1739304848097,0.03759825,196.54,196.51,0.032022]
[1739304848498,8.95637706,196.53,196.51,0.032022]
[1739304848900,8.93067382,196.53,196.51,0.032022]
[1739304861210,14.01917382,196.53,196.51,0.032022]
[1739304861612,8.93067382,196.53,196.51,0.032022]
[1739304861811,5.0888,196.52,196.51,0.032022]
[1739304863208,14.01927382,196.53,196.51,0.032022]
[1739304864618,8.93067382,196.53,196.51,0.032022]
[1739304865918,0.03759825,196.54,196.51,14.07719906]
[1739304866116,0.03759825,196.54,196.51,8.98839906]
[1739304866617,0.03759825,196.54,196.52,5.0887]
[1739304866812,0.03759825,196.54,196.51,8.98839906]
[1739304867417,0.03759825,196.54,196.51,0.032022]
[1739304869518,0.03759825,196.54,196.51,8.98839906]
[1739304869718,0.03759825,196.54,196.53,14.04487706]
[1739304894733,8.95637706,196.63,196.59,5.0868]
[1739304895242,8.95637706,196.63,196.58,8.95637706]
[1739304895737,8.95637706,196.63,196.59,5.0869]
[1739304895940,0.03681696,196.62,196.59,5.12471741]
[1739304896537,0.03681696,196.62,196.6,5.0866]
[1739304896937,0.03681696,196.62,196.59,0.03781741]
[1739304897839,5.12321696,196.62,196.59,0.03781741]
[1739304898139,0.03681696,196.62,196.59,0.03781741]
[1739304900038,5.12321696,196.62,196.59,0.03781741]
[1739304900432,8.95637706,196.61,196.59,0.03781741]
[1739304903535,5.0867,196.6,196.59,0.03781741]
[1739304903938,8.95637706,196.61,196.52,8.95637706]
[1739304904134,8.95637706,196.61,196.48,1.5763]
[1739304904135,8.95637706,196.54,196.48,1.5763]
[1739304904440,8.95637706,196.52,196.47,1.5631]
[1739304904745,8.95637706,196.52,196.46,8.95637706]
[1739304905239,0.03808878,196.51,196.48,5.0896]
[1739304905737,0.03808878,196.51,196.47,0.03290619]
[1739304905738,5.0896,196.49,196.47,0.03290619]
[1739304905939,8.95637706,196.48,196.47,0.03290619]
[1739304906236,8.95637706,196.5,196.47,0.03290619]
[1739304906437,0.03808878,196.51,196.47,0.03290619]
[1739304908138,0.03808878,196.51,196.49,5.0895]
[1739304909041,0.03808878,196.51,196.5,14.04567706]
[1739304909240,1.5768,196.61,196.5,8.95637706]
[1739304909442,8.95637706,196.62,196.56,8.95637706]
[1739304909643,5.0869,196.6,196.56,8.95637706]
[1739304909842,8.95637706,196.62,196.56,8.95637706]
[1739304910043,5.0865,196.61,196.56,14.04407706]
[1739304910238,8.95637706,196.6,196.54,8.95637706]
[1739304910441,8.95637706,196.6,196.57,0.03836491]
[1739304910442,8.99352948,196.6,196.57,0.03836491]
[1739304911045,14.04357706,196.58,196.57,0.03836491]
[1739304911844,8.95637706,196.58,196.5,14.04547706]
[1739304912145,1.5062,196.63,196.48,8.95637706]
[1739304912146,8.95637706,196.53,196.48,8.95637706]
[1739304912446,14.04487706,196.53,196.48,14.04597706]
[1739304912643,8.95637706,196.51,196.46,8.95637706]
[1739304912946,8.95637706,196.51,196.43,1.5087]
[1739304912947,0.03738236,196.5,196.47,0.03463312]
[1739304913844,8.95637706,196.49,196.47,0.03463312]
[1739304914148,5.0898,196.48,196.47,0.03463312]
[1739304914344,8.95637706,196.49,196.47,0.03463312]
[1739304915047,5.0898,196.48,196.47,0.03463312]
[1739304916146,14.04597706,196.49,196.47,0.03463312]
[1739304916344,8.95637706,196.49,196.47,0.03463312]
[1739304918759,0.03738236,196.5,196.48,8.95637706]
[1739304919253,0.03738236,196.5,196.49,5.0895]
[1739304921052,0.03738236,196.5,196.47,0.03463312]
[1739304921252,8.95637706,196.49,196.47,0.03463312]
[1739304921653,19.08804227,196.48,196.47,0.03463312]
[1739304923159,8.1005,196.49,196.47,0.03463312]
[1739304924557,5.0898,196.48,196.47,0.03463312]
[1739304925758,5.0899,196.48,196.42,5.0913]
[1739304926954,0.03602157,196.47,196.43,5.12760718]
[1739304928357,5.12612157,196.47,196.43,5.12760718]
[1739304929455,5.12612157,196.47,196.43,0.03660718]
[1739304930064,5.0908,196.45,196.43,0.03660718]
[1739304931157,5.0903,196.46,196.43,0.03660718]
[1739304931461,0.03602157,196.47,196.43,0.03660718]
[1739304931656,5.0908,196.44,196.43,0.03660718]
[1739304932161,0.03602157,196.47,196.43,0.03660718]
[1739304932355,5.0906,196.45,196.43,0.03660718]
[1739304932961,5.0908,196.44,196.43,0.03660718]
[1739304933364,13.99824227,196.45,196.38,5.0923]